bitfinex-derivatives/quotes_BTCF0:USTF0_20241104
["timestamp","ask_amount","ask_price","bid_price","bid_amount"]
[1730710951879,0.59861889,68806.0,68796.0,0.07274]
[1730710951880,0.072739,68797.0,68796.0,0.07274]
[1730710952083,0.13822099,68797.0,68796.0,0.07274]
[1730710954487,0.072744,68792.0,68791.0,0.07592559]
[1730710954690,0.49902599,68792.0,68791.0,0.00318059]
[1730710955384,0.49902599,68792.0,68791.0,0.00218059]
[1730710955774,0.50802599,68792.0,68791.0,0.00318059]
[1730710956594,0.50802599,68792.0,68791.0,0.07592559]
[1730710957079,0.51802599,68792.0,68791.0,0.07692559]
[1730710957485,0.51802599,68792.0,68791.0,0.00418059]
[1730710958179,0.452544,68792.0,68791.0,0.00418059]
[1730710963095,0.555344,68792.0,68791.0,0.00418059]
[1730710963284,1.044764,68792.0,68791.0,0.00418059]
[1730710964585,1.044764,68792.0,68791.0,0.04757793]
[1730710965192,1.044764,68792.0,68791.0,0.00418059]
[1730710965586,0.608644,68792.0,68791.0,0.00418059]
[1730710966696,1.044764,68792.0,68791.0,0.00418059]
[1730710967389,0.608644,68792.0,68791.0,0.00418059]
[1730710967590,1.044764,68792.0,68791.0,0.00418059]
[1730710969095,0.608644,68792.0,68791.0,0.00418059]
[1730710969297,0.608644,68792.0,68791.0,0.002]
[1730710969495,0.07275,68787.0,68780.0,0.11615434]
[1730710969800,0.072756,68781.0,68780.0,0.072757]
[1730710970797,0.072756,68781.0,68780.0,0.073757]
[1730710971795,0.072756,68781.0,68780.0,0.075757]
[1730710972804,0.072756,68781.0,68780.0,0.074757]
[1730710973204,0.13763509,68781.0,68780.0,0.074757]
[1730710980298,0.072756,68781.0,68780.0,0.24754336]
[1730710980504,0.072756,68781.0,68780.0,0.17520437]
[1730710983602,0.072756,68781.0,68780.0,0.26201732]
[1730710983806,0.2125328,68781.0,68780.0,0.10244737]
[1730710984005,0.072756,68781.0,68780.0,0.10261236]
[1730710986215,0.072756,68781.0,68780.0,0.17536936]
[1730710986511,0.072756,68781.0,68780.0,0.10261236]
[1730710988206,0.13758896,68781.0,68780.0,0.002]
[1730710988606,0.13758897,68781.0,68778.0,0.05467]
[1730710988808,0.072758,68779.0,68778.0,0.05467]
[1730710989008,0.13759097,68779.0,68778.0,0.05467]
[1730710989814,0.06498,68779.0,68778.0,0.1944468]
[1730710990007,0.06499679,68779.0,68778.0,0.1944468]
[1730710990313,0.00195,68782.0,68780.0,0.072757]
[1730710990314,0.06499679,68781.0,68780.0,0.072757]
[1730710990514,0.06502031,68781.0,68780.0,0.072757]
[1730710990712,0.07902031,68781.0,68780.0,0.072757]
[1730710991302,0.06502031,68781.0,68780.0,0.072757]
[1730710991707,0.13777631,68781.0,68780.0,0.072757]
[1730710991916,0.14477631,68781.0,68780.0,0.073757]
[1730710992514,0.14477631,68781.0,68780.0,0.001]
[1730710992715,0.15277631,68781.0,68780.0,0.002]
[1730710993022,0.15260995,68781.0,68780.0,0.002]
[1730710993412,0.18927401,68781.0,68780.0,0.001]
[1730710993710,0.19727401,68781.0,68780.0,0.002]
[1730710993915,0.33705081,68781.0,68780.0,0.002]
[1730710994509,0.29238675,68781.0,68780.0,0.002]
[1730710995222,0.2275328,68781.0,68780.0,0.07452316]
[1730710995720,0.25615246,68781.0,68780.0,0.002]
[1730710996111,0.25615246,68781.0,68780.0,0.07452316]
[1730710996315,0.25615246,68781.0,68780.0,0.002]
[1730710996710,0.25615246,68781.0,68780.0,0.07452316]
[1730710996910,0.25615246,68781.0,68780.0,0.002]
[1730710997420,0.11637566,68781.0,68780.0,0.002]
[1730710999422,0.27247566,68781.0,68780.0,0.002]
[1730711003423,0.52720256,68781.0,68780.0,0.002]
[1730711003814,0.38230042,68781.0,68780.0,0.002]
[1730711004710,0.38230042,68781.0,68775.0,0.3608]
[1730711004711,0.072761,68776.0,68775.0,0.3608]
[1730711004921,0.32236293,68776.0,68775.0,0.3608]
[1730711005120,0.072769,68768.0,68767.0,0.072769]
[1730711005323,0.24775124,68768.0,68767.0,0.072769]
[1730711005516,0.24775124,68768.0,68766.0,0.33200152]
[1730711005517,0.07277,68767.0,68766.0,0.33200152]
[1730711005720,0.1824853,68767.0,68766.0,0.33200152]
[1730711006816,0.1097153,68767.0,68766.0,0.40477252]
[1730711007032,0.154095,68767.0,68766.0,0.40477252]
[1730711007716,0.154095,68767.0,68766.0,0.41177252]
[1730711007717,0.155095,68767.0,68766.0,0.41177252]
[1730711007917,0.155095,68767.0,68766.0,0.41677252]
[1730711008517,0.155095,68767.0,68766.0,0.48268774]
[1730711009016,0.155095,68767.0,68766.0,0.91892774]
[1730711009622,0.22018252,68767.0,68766.0,0.91892774]
[1730711009824,0.07478356,68767.0,68766.0,0.91892774]
[1730711010021,0.15509246,68767.0,68766.0,0.91892774]
[1730711010422,0.04566989,68767.0,68766.0,1.13906607]
[1730711010629,0.04734989,68767.0,68766.0,1.13906607]
[1730711010929,0.3608,68776.0,68775.0,0.072762]
[1730711011127,0.3608,68776.0,68775.0,0.17316791]
[1730711011431,0.433561,68776.0,68775.0,0.17316791]
[1730711011624,0.433561,68776.0,68775.0,0.17345247]
[1730711012128,0.437561,68776.0,68775.0,0.17345247]
[1730711012317,0.439561,68776.0,68775.0,0.17345247]
[1730711014231,0.3668,68776.0,68775.0,0.17348604]
[1730711014630,0.006,68776.0,68775.0,0.31326284]
[1730711014927,0.006,68776.0,68775.0,0.41376284]
[1730711015532,0.006,68776.0,68775.0,0.53352294]
[1730711016736,0.006,68776.0,68775.0,0.96972294]
[1730711018437,0.006,68776.0,68775.0,0.84996284]
[1730711019022,0.00218152,68781.0,68780.0,0.072756]
[1730711019228,0.00218152,68781.0,68780.0,0.67405684]
[1730711019628,0.05972069,68789.0,68780.0,0.67405684]
[1730711019835,0.05972069,68789.0,68788.0,0.072748]
[1730711020038,0.05972069,68789.0,68788.0,0.24512232]
[1730711020230,0.05972069,68789.0,68788.0,0.14511723]
[1730711021034,0.05972069,68789.0,68788.0,0.17274952]
[1730711021420,0.07372069,68789.0,68788.0,0.17374952]
[1730711021621,0.08772069,68789.0,68788.0,0.17474952]
[1730711022526,0.08772069,68789.0,68788.0,0.53554952]
[1730711022732,0.08772069,68789.0,68788.0,1.11875774]
[1730711022733,0.014,68789.0,68788.0,1.11875774]
[1730711022942,0.00218096,68803.0,68799.0,0.072736]
[1730711023233,0.052,68806.0,68799.0,0.072736]
[1730711023234,0.07273,68805.0,68799.0,0.072736]
[1730711023833,0.072735,68801.0,68799.0,0.072736]
[1730711024044,0.447535,68800.0,68799.0,0.073736]
[1730711024334,0.461535,68800.0,68799.0,0.074736]
[1730711025036,0.3888,68800.0,68799.0,0.074736]
[1730711025433,0.49843193,68800.0,68799.0,0.074736]
[1730711026740,0.12363193,68800.0,68799.0,0.074736]
[1730711027039,0.07898095,68800.0,68799.0,0.074736]
[1730711027243,0.06498095,68800.0,68799.0,0.074736]
[1730711027838,0.06498095,68800.0,68799.0,0.073736]
[1730711028237,0.06497359,68800.0,68799.0,0.073736]
[1730711028533,0.06497359,68800.0,68788.0,0.434308]
[1730711028534,0.20473746,68800.0,68788.0,0.36156]
[1730711028744,0.072747,68789.0,68788.0,0.433546]
[1730711028930,0.072747,68789.0,68788.0,0.3608]
[1730711028931,0.18221815,68789.0,68788.0,0.3608]
[1730711029128,0.32714593,68789.0,68788.0,0.3608]
[1730711029326,0.22687854,68789.0,68788.0,0.3608]
[1730711029738,0.66299854,68789.0,68788.0,0.3608]
[1730711029949,0.71518228,68789.0,68788.0,0.3608]
[1730711030141,0.66299854,68789.0,68788.0,0.3608]
[1730711031034,0.66299854,68789.0,68788.0,0.3658]
[1730711031241,0.25576781,68789.0,68788.0,0.3668]
[1730711031431,0.21111026,68789.0,68788.0,0.3668]
[1730711031836,0.31381026,68789.0,68788.0,0.3668]
[1730711032032,0.31381026,68789.0,68788.0,0.439548]
[1730711032033,0.16465783,68789.0,68788.0,0.439548]
[1730711032433,0.11247399,68789.0,68788.0,0.439548]
[1730711033132,0.11347399,68789.0,68788.0,0.435548]
[1730711033337,0.004,68789.0,68788.0,0.49332851]
[1730711033739,0.004,68789.0,68788.0,0.49232851]
[1730711034139,0.001,68789.0,68788.0,0.49132851]
[1730711034340,0.005,68789.0,68788.0,0.49232851]
[1730711034741,0.005,68789.0,68788.0,0.49230577]
[1730711034937,0.3608,68794.0,68788.0,0.433548]
[1730711035137,0.3608,68794.0,68793.0,0.072743]
[1730711036650,0.3618,68794.0,68793.0,0.072743]
[1730711036952,0.073742,68794.0,68793.0,0.072743]
[1730711037142,0.073742,68794.0,68791.0,0.05775519]
[1730711037143,0.3608,68801.0,68800.0,0.072736]
[1730711037337,0.433535,68801.0,68800.0,0.072736]
[1730711038950,0.437535,68801.0,68800.0,0.073736]
[1730711040249,0.438535,68801.0,68800.0,0.074736]
[1730711040452,0.438535,68801.0,68793.0,0.06308431]
[1730711040453,0.59587467,68801.0,68793.0,0.06308431]
[1730711040655,0.16133967,68800.0,68794.0,0.072742]
[1730711040850,0.23407667,68799.0,68798.0,0.072738]
[1730711041253,0.23405405,68799.0,68798.0,0.072738]
[1730711041653,0.18187771,68799.0,68798.0,0.072738]
[1730711043253,0.23405405,68799.0,68798.0,0.072738]
[1730711043468,0.23505405,68799.0,68798.0,0.073738]
[1730711043666,0.23505405,68799.0,68798.0,0.074738]
[1730711043667,0.24005405,68799.0,68798.0,0.074738]
[1730711044166,0.24105405,68799.0,68798.0,0.074738]
[1730711044466,0.24105405,68799.0,68798.0,0.073738]
[1730711044467,0.23605405,68799.0,68798.0,0.073738]
[1730711044665,0.24205405,68799.0,68798.0,0.074738]
[1730711044969,0.24205405,68799.0,68798.0,0.002]
[1730711045468,0.37832045,68799.0,68798.0,0.002]
[1730711045659,0.43049679,68799.0,68798.0,0.002]
[1730711045858,0.24205405,68799.0,68798.0,0.002]
[1730711047466,0.516777,68799.0,68798.0,0.002]
[1730711047671,0.072746,68791.0,68790.0,0.072746]
[1730711047864,0.072747,68789.0,68788.0,0.3608]
[1730711050855,0.074747,68789.0,68788.0,0.3608]
[1730711051865,0.079747,68789.0,68788.0,0.3618]
[1730711052068,0.079747,68789.0,68788.0,0.001]
[1730711053380,0.081747,68789.0,68788.0,0.002]
[1730711055765,0.072756,68781.0,68774.0,0.00218109]
[1730711055966,0.433562,68775.0,68774.0,0.00218109]
[1730711056672,0.5733388,68775.0,68774.0,0.00218109]
[1730711057675,0.60247725,68775.0,68774.0,0.00218109]
[1730711057977,0.60247725,68775.0,68774.0,0.00318109]
[1730711058784,0.60247725,68775.0,68774.0,0.00218109]
[1730711059078,0.60347725,68775.0,68774.0,0.00318109]
[1730711059872,1.03967725,68775.0,68774.0,0.00318109]
[1730711061076,0.60347725,68775.0,68774.0,0.00318109]
[1730711061274,1.03967725,68775.0,68774.0,0.00318109]
[1730711061769,1.03967725,68775.0,68766.0,0.03635517]
[1730711061770,0.072771,68767.0,68766.0,0.03635517]
[1730711061971,0.433571,68767.0,68766.0,0.03635517]
[1730711062781,0.46168686,68767.0,68766.0,0.03635517]
[1730711063171,0.46168686,68767.0,68766.0,0.05035517]
[1730711064268,0.5934824,68767.0,68766.0,0.05035517]
[1730711064473,0.5944824,68767.0,68766.0,0.06435517]
[1730711065379,0.4918024,68767.0,68766.0,0.06435517]
[1730711065578,0.434571,68767.0,68766.0,0.27690397]
[1730711066384,0.434571,68767.0,68766.0,0.13712717]
[1730711068980,0.5743478,68767.0,68766.0,0.06435517]
[1730711070687,0.434571,68767.0,68766.0,0.06435517]
[1730711070897,0.434571,68767.0,68766.0,0.13712717]
[1730711073475,0.434571,68767.0,68766.0,0.06435517]
[1730711074088,0.5743478,68767.0,68766.0,0.06435517]
[1730711075586,1.1503646,68767.0,68766.0,0.06435517]
[1730711075785,1.0105878,68767.0,68766.0,0.06435517]
[1730711076885,1.0105878,68767.0,68766.0,0.05135517]
[1730711076886,1.03844344,68767.0,68766.0,0.05135517]
[1730711077089,1.03744344,68767.0,68766.0,0.03735517]
[1730711077279,1.04544344,68767.0,68766.0,0.03835517]
[1730711077676,1.07356213,68767.0,68766.0,0.03835517]
[1730711077885,1.04544344,68767.0,68766.0,0.03835517]
[1730711078483,1.14808344,68767.0,68766.0,0.03835517]
[1730711079194,1.17620213,68767.0,68766.0,0.03835517]
[1730711079798,0.072789,68752.0,68751.0,0.072787]
[1730711079983,0.07279,68749.0,68748.0,0.174589]
[1730711080985,0.07279,68749.0,68748.0,0.1018]
[1730711081892,0.07379,68749.0,68748.0,0.1158]
[1730711082292,0.07379,68749.0,68748.0,0.202591]
[1730711082293,0.07479,68749.0,68748.0,0.202591]
[1730711085388,0.002,68749.0,68748.0,0.202591]
[1730711085585,0.10264,68757.0,68748.0,0.49591224]
[1730711085786,0.072782,68757.0,68756.0,0.072782]
[1730711085992,0.072782,68757.0,68756.0,0.17603902]
[1730711086786,0.073782,68757.0,68756.0,0.17603902]
[1730711087889,0.001,68757.0,68756.0,0.17603902]
[1730711088583,0.001,68757.0,68756.0,0.17703902]
[1730711088784,0.001,68757.0,68756.0,0.17634683]
[1730711091000,0.001,68757.0,68756.0,0.19949728]
[1730711091896,0.001,68757.0,68756.0,0.17634683]
[1730711092089,0.3618,68757.0,68756.0,0.17634683]
[1730711092700,0.46269946,68757.0,68756.0,0.073782]
[1730711095098,0.02911846,68757.0,68756.0,0.073782]
[1730711095301,0.001,68757.0,68756.0,0.073782]
[1730711096704,0.073781,68757.0,68756.0,0.073782]
[1730711097807,0.46269911,68757.0,68756.0,0.073782]
[1730711099096,0.49834582,68757.0,68756.0,0.073782]
[1730711099892,0.46269911,68757.0,68756.0,0.001]
[1730711100290,0.46269959,68757.0,68756.0,0.001]
[1730711100695,0.434581,68757.0,68756.0,0.10381208]
[1730711101401,0.434581,68757.0,68756.0,0.17659408]
[1730711102604,0.434581,68757.0,68756.0,0.10381208]
[1730711103111,0.434581,68757.0,68756.0,0.001]
[1730711105213,0.434581,68757.0,68756.0,0.073782]
[1730711105214,0.3618,68757.0,68756.0,0.073782]
[1730711105402,0.3618,68757.0,68756.0,0.26367608]
[1730711105597,0.3618,68757.0,68756.0,0.2268838]
[1730711107304,0.3618,68757.0,68756.0,0.1767838]
[1730711107305,0.434581,68757.0,68756.0,0.1767838]
[1730711107611,0.434581,68757.0,68756.0,0.17658649]
[1730711107800,0.434581,68757.0,68756.0,0.17658716]
[1730711108006,0.434581,68757.0,68756.0,0.001]
[1730711111908,0.537181,68757.0,68756.0,0.001]
[1730711112406,0.434581,68757.0,68756.0,0.001]
[1730711113008,0.45739283,68757.0,68756.0,0.001]
[1730711115817,0.48551366,68757.0,68756.0,0.001]
[1730711116719,0.84631366,68757.0,68756.0,0.001]
[1730711117708,0.84631366,68757.0,68756.0,0.073782]
[1730711118212,0.81819283,68757.0,68756.0,0.073782]
[1730711118418,0.84631367,68757.0,68756.0,0.073782]
[1730711121911,0.84631366,68757.0,68756.0,0.073782]
[1730711122523,0.12471366,68757.0,68756.0,0.073782]
[1730711122729,0.81819283,68757.0,68756.0,0.073782]
[1730711125720,0.81819283,68757.0,68756.0,0.001]
[1730711126125,0.87119283,68757.0,68756.0,0.001]
[1730711127323,0.81819283,68757.0,68756.0,0.001]
[1730711131621,0.09659283,68757.0,68756.0,0.001]
[1730711131823,0.81819283,68757.0,68756.0,0.001]
[1730711133433,1.00178147,68757.0,68756.0,0.001]
[1730711138437,0.7226,68757.0,68756.0,0.17706189]
[1730711138630,0.4814,68757.0,68756.0,0.61327259]
[1730711138931,0.00218213,68766.0,68765.0,0.072773]
[1730711139132,0.00218213,68766.0,68765.0,0.17594359]
[1730711139330,0.00218213,68766.0,68765.0,0.24850856]
[1730711139531,0.00218213,68766.0,68765.0,0.14533797]
[1730711139734,0.07495413,68766.0,68765.0,0.14533797]
[1730711140436,0.00218213,68766.0,68765.0,0.072773]
[1730711141229,0.07995413,68766.0,68765.0,0.073773]
[1730711141626,0.08695413,68766.0,68765.0,0.074773]
[1730711142033,0.01418213,68766.0,68765.0,0.17751193]
[1730711142238,0.01418213,68766.0,68765.0,0.61379193]
[1730711142435,0.01418213,68766.0,68765.0,0.70091992]
[1730711142634,0.3608,68780.0,68779.0,0.072758]
[1730711142635,0.433557,68780.0,68779.0,0.072758]
[1730711142836,0.072757,68780.0,68779.0,0.072758]
[1730711144333,0.072757,68780.0,68779.0,0.13058337]
[1730711144540,0.072757,68780.0,68779.0,0.13158337]
[1730711144738,0.073757,68780.0,68779.0,0.13258337]
[1730711145432,0.073757,68780.0,68779.0,0.073758]
[1730711145736,0.11842292,68780.0,68779.0,0.074758]
[1730711146035,0.18116686,68780.0,68779.0,0.074758]
[1730711146937,0.32100213,68780.0,68779.0,0.074758]
[1730711147440,0.32100213,68780.0,68779.0,0.072758]
[1730711147645,0.32100213,68780.0,68779.0,0.074758]
[1730711147646,0.32200213,68780.0,68779.0,0.074758]
[1730711148234,0.32200213,68780.0,68779.0,0.073758]
[1730711148432,0.32200213,68780.0,68779.0,0.002]
[1730711148633,0.30044145,68780.0,68765.0,0.0991]
[1730711148836,0.001,68780.0,68779.0,0.001]
[1730711149137,0.072768,68771.0,68770.0,0.072766]
[1730711149352,0.10088111,68771.0,68770.0,0.072766]
[1730711149528,0.1811935,68771.0,68770.0,0.072766]
[1730711150339,0.32102877,68771.0,68764.0,0.3608]
[1730711150542,0.072773,68765.0,68764.0,0.433572]
[1730711151246,0.14555847,68765.0,68764.0,0.433572]
[1730711151447,0.1811985,68765.0,68764.0,0.433572]
[1730711152139,0.1811985,68765.0,68764.0,0.079772]
[1730711152341,0.1831985,68765.0,68764.0,0.008]
[1730711152551,0.23540187,68765.0,68764.0,0.008]
[1730711152846,0.074773,68765.0,68764.0,0.008]
[1730711153544,0.074773,68765.0,68764.0,0.001]
[1730711153739,0.076773,68765.0,68764.0,0.002]
[1730711154330,0.09980413,68765.0,68764.0,0.002]
[1730711160048,0.072787,68754.0,68753.0,0.072785]
[1730711160748,0.072792,68748.0,68747.0,0.07279]
[1730711160952,0.3608,68757.0,68747.0,0.07279]
[1730711161147,0.072788,68751.0,68750.0,0.072786]
[1730711163554,0.072788,68751.0,68750.0,0.079786]
[1730711164543,0.072788,68751.0,68750.0,0.084786]
[1730711166544,0.072788,68751.0,68750.0,0.012]
[1730711166953,0.57342327,68751.0,68750.0,0.012]
[1730711167254,0.67590327,68751.0,68750.0,0.012]
[1730711167753,0.64453267,68751.0,68750.0,0.00810648]
[1730711167949,0.54205267,68751.0,68750.0,0.00810648]
[1730711168251,0.68709323,68751.0,68750.0,0.08089548]
[1730711168447,0.54205267,68751.0,68750.0,0.08089548]
[1730711169553,0.18125267,68751.0,68750.0,0.08089548]
[1730711172458,0.13656416,68751.0,68750.0,0.08089548]
[1730711173950,0.49736416,68751.0,68750.0,0.08089548]
[1730711174152,0.6818865,68751.0,68750.0,0.08089548]
[1730711174761,0.6818865,68751.0,68750.0,0.00810648]
[1730711175058,0.68188816,68751.0,68750.0,0.00810648]
[1730711175756,0.57342327,68751.0,68741.0,0.3006556]
[1730711175964,0.072795,68744.0,68743.0,0.072794]
[1730711176458,0.13983527,68746.0,68741.0,0.3006556]
[1730711176652,0.072797,68742.0,68741.0,0.3734526]
[1730711176954,0.072797,68742.0,68741.0,0.3874526]
[1730711177860,0.072797,68742.0,68741.0,0.086797]
[1730711178664,0.072797,68742.0,68741.0,0.086798]
[1730711178958,0.074797,68742.0,68741.0,0.100798]
[1730711181264,0.002,68742.0,68741.0,0.100798]
[1730711182964,0.10292059,68742.0,68741.0,0.100798]
[1730711183464,0.03012359,68742.0,68741.0,0.100798]
[1730711184670,0.06577606,68742.0,68741.0,0.24063327]
[1730711184855,0.002,68742.0,68741.0,0.24063327]
[1730711185055,0.11046401,68742.0,68741.0,0.24063327]
[1730711185964,0.06577606,68742.0,68741.0,0.24063327]
[1730711189368,0.06577606,68742.0,68741.0,0.19258497]
[1730711190568,0.06577144,68742.0,68741.0,0.19258497]
[1730711190964,0.002,68742.0,68741.0,0.2982711]
[1730711193768,0.09621391,68749.0,68741.0,0.6590711]
[1730711194065,0.09621391,68749.0,68748.0,0.13089204]
[1730711194375,0.09178697,68751.0,68748.0,0.13089204]
[1730711194676,0.09178697,68751.0,68750.0,0.072789]
[1730711195879,0.09278697,68751.0,68750.0,0.078789]
[1730711196271,0.16557497,68751.0,68750.0,0.078789]
[1730711196775,0.19381279,68751.0,68750.0,0.078789]
[1730711197079,0.19381279,68751.0,68750.0,0.083789]
[1730711199865,0.001,68751.0,68750.0,0.62816294]
[1730711200071,0.0491,68757.0,68756.0,0.072782]
[1730711200277,0.0491,68757.0,68756.0,0.58343071]
[1730711200475,0.0491,68757.0,68756.0,0.52536897]
[1730711200683,0.0491,68757.0,68756.0,0.58342096]
[1730711200967,0.0491,68757.0,68756.0,0.52536897]
[1730711201172,0.0501,68757.0,68756.0,0.58342004]
[1730711201382,0.0501,68757.0,68756.0,0.52536897]
[1730711201976,0.0501,68757.0,68756.0,0.5834057]
[1730711203075,0.0501,68757.0,68756.0,0.2226057]
[1730711203382,0.0501,68757.0,68756.0,0.16456897]
[1730711203770,0.0501,68757.0,68756.0,0.2226057]
[1730711205078,0.001,68757.0,68756.0,0.25109945]
[1730711205384,0.001,68757.0,68756.0,0.19306272]
[1730711205881,0.10942713,68757.0,68756.0,0.12028072]
[1730711206266,0.10942713,68757.0,68756.0,0.19306272]
[1730711209486,0.10942636,68757.0,68756.0,0.19306272]
[1730711212980,0.001,68757.0,68756.0,0.19306272]
[1730711218083,0.001,68757.0,68756.0,0.28484969]
[1730711218280,0.00218195,68768.0,68765.0,0.072773]
[1730711218479,0.05,68784.0,68767.0,0.3608]
[1730711218689,0.224853,68784.0,68783.0,0.072754]
[1730711218986,0.25235251,68784.0,68783.0,0.072754]
[1730711219386,0.17959951,68784.0,68783.0,0.072754]
[1730711220285,0.18759951,68784.0,68783.0,0.072754]
[1730711220484,0.18759951,68784.0,68783.0,0.433554]
[1730711220684,0.1601,68784.0,68783.0,0.433554]
[1730711220885,0.1601,68784.0,68783.0,0.15690626]
[1730711220886,0.31267854,68784.0,68783.0,0.15690626]
[1730711221088,0.50931339,68784.0,68783.0,0.07592058]
[1730711221482,0.32067854,68784.0,68783.0,0.07592058]
[1730711221986,0.32467854,68784.0,68783.0,0.14967458]
[1730711222788,0.32467766,68784.0,68783.0,0.14967458]
[1730711223184,0.27537766,68784.0,68783.0,0.14967458]
[1730711223388,0.2822867,68784.0,68783.0,0.41983315]
[1730711223798,0.22257766,68784.0,68783.0,0.41983315]
[1730711224286,0.17257766,68784.0,68783.0,0.94778012]
[1730711224487,0.09371566,68784.0,68783.0,0.94878012]
[1730711224791,0.05453139,68784.0,68783.0,1.15248012]
[1730711225091,0.0506,68796.0,68785.0,0.072752]
[1730711225092,0.05218427,68786.0,68785.0,0.072752]
[1730711225288,0.05218427,68795.0,68794.0,0.072742]
[1730711225488,0.05218427,68795.0,68794.0,0.21249981]
[1730711226999,0.05218427,68795.0,68791.0,0.3403983]
[1730711227211,0.00218145,68798.0,68797.0,0.072739]
[1730711227383,0.05435112,68798.0,68797.0,0.072739]
[1730711227997,0.00218145,68798.0,68797.0,0.072739]
[1730711228495,0.00218145,68798.0,68797.0,0.073739]
[1730711230289,0.00318145,68798.0,68797.0,0.074739]
[1730711230687,0.001,68798.0,68797.0,0.074739]
[1730711233994,0.001,68798.0,68797.0,0.510819]
[1730711234696,0.001,68798.0,68797.0,0.074739]
[1730711234895,0.001,68798.0,68797.0,0.510819]
[1730711235092,0.001,68798.0,68797.0,0.435539]
[1730711235294,0.001,68798.0,68797.0,0.871619]
[1730711235495,0.001,68798.0,68797.0,0.435539]
[1730711235698,0.001,68798.0,68797.0,0.871619]
[1730711235897,0.001,68798.0,68797.0,0.435539]
[1730711236100,0.06471429,68798.0,68797.0,0.27542596]
[1730711236302,0.22351025,68798.0,68797.0,0.27542596]
[1730711236696,0.2681554,68798.0,68797.0,0.27542596]
[1730711236902,0.2681554,68798.0,68797.0,0.34816496]
[1730711237103,0.10935944,68798.0,68797.0,0.34816496]
[1730711238205,0.10935944,68798.0,68797.0,0.072739]
[1730711238809,0.04564515,68798.0,68797.0,0.072739]
[1730711239004,0.001,68798.0,68797.0,0.072739]
[1730711239197,0.15879596,68803.0,68802.0,0.072734]
[1730711239398,0.15879596,68803.0,68802.0,0.21249181]
[1730711240110,0.19441428,68803.0,68802.0,0.21249181]
[1730711240711,0.2671554,68803.0,68802.0,0.21249181]
[1730711241213,0.15879596,68803.0,68802.0,0.21249181]
[1730711241512,0.05216741,68807.0,68804.0,0.072731]
[1730711241712,0.05216741,68807.0,68804.0,0.21248881]
[1730711243207,0.0534,68805.0,68804.0,0.21348881]
[1730711243510,0.0534,68805.0,68804.0,0.21448881]
[1730711245414,0.0534,68805.0,68804.0,0.16643701]
[1730711247023,0.0534,68805.0,68804.0,0.001]
[1730711247024,0.48693,68805.0,68804.0,0.001]
[1730711247312,0.8502,68805.0,68795.0,0.07274]
[1730711247617,0.43354,68796.0,68795.0,0.07274]
[1730711248003,0.072744,68792.0,68791.0,0.072744]
[1730711248609,0.09170601,68793.0,68788.0,0.072748]
[1730711248805,0.45250601,68789.0,68783.0,0.20793052]
[1730711249023,0.072753,68784.0,68783.0,0.16361599]
[1730711249213,0.072749,68788.0,68787.0,0.072749]
[1730711249813,0.3608,68789.0,68786.0,0.1397826]
[1730711250007,0.072749,68787.0,68786.0,0.2125326]
[1730711250313,0.072749,68787.0,68783.0,0.07290998]
[1730711250503,0.072753,68784.0,68778.0,0.05797176]
[1730711250708,0.072758,68779.0,68778.0,0.05797176]
[1730711250908,0.072758,68779.0,68766.0,0.3608]
[1730711251121,0.433564,68773.0,68770.0,0.072767]
[1730711251312,0.433564,68773.0,68770.0,0.1397826]
[1730711251614,0.433564,68773.0,68772.0,0.072765]
[1730711251805,0.072766,68771.0,68770.0,0.1397826]
[1730711252805,0.072766,68771.0,68770.0,0.2125496]
[1730711253115,0.075766,68771.0,68770.0,0.2125496]
[1730711253813,0.003,68771.0,68770.0,0.2125496]
[1730711256711,0.3608,68781.0,68777.0,0.07276]
[1730711257019,0.3608,68781.0,68780.0,0.072757]
[1730711258419,0.42453814,68781.0,68780.0,0.072757]
[1730711258718,0.10839712,68781.0,68774.0,0.072763]
[1730711258920,0.1009,68789.0,68779.0,0.2125406]
[1730711258921,0.10839712,68780.0,68779.0,0.2125406]
[1730711259110,0.06373814,68780.0,68779.0,0.072758]
[1730711259309,0.06373814,68780.0,68773.0,0.4997826]
[1730711259511,0.06373814,68779.0,68775.0,0.072762]
[1730711259811,0.06373814,68778.0,68777.0,0.07276]
[1730711262410,0.06373814,68778.0,68777.0,0.07376]
[1730711263913,0.11741919,68778.0,68777.0,0.07376]
[1730711264224,0.23190895,68778.0,68777.0,0.05388796]
[1730711264422,0.18115733,68778.0,68777.0,0.05388796]
[1730711265314,0.15923185,68778.0,68777.0,0.05388796]
[1730711265513,0.4137,68782.0,68781.0,0.072756]
[1730711265514,0.3618,68782.0,68781.0,0.072756]
[1730711265711,0.3608,68782.0,68781.0,0.072756]
[1730711266019,0.3608,68782.0,68781.0,0.508916]
[1730711266217,0.32440035,68782.0,68781.0,0.508916]
[1730711266814,0.32440035,68782.0,68781.0,0.868916]
[1730711267417,0.32440035,68782.0,68781.0,0.872916]
[1730711267621,0.3608,68794.0,68793.0,0.072743]
[1730711267809,0.3608,68800.0,68793.0,0.072743]
[1730711268025,0.3608,68800.0,68797.0,0.2125216]
[1730711268220,0.3608,68803.0,68797.0,0.2125216]
[1730711268519,0.3608,68803.0,68797.0,0.072739]
[1730711268925,0.3608,68803.0,68797.0,0.2125216]
[1730711269525,0.3608,68803.0,68797.0,0.2135216]
[1730711269917,0.00518075,68798.0,68797.0,0.2145216]
[1730711270523,0.00518075,68798.0,68797.0,0.5753216]
[1730711271530,0.0518,68816.0,68815.0,0.07272]
[1730711272718,0.0518,68816.0,68815.0,0.07372]
[1730711273227,0.0519,68818.0,68817.0,0.072718]
[1730711273432,0.0519,68818.0,68817.0,0.2125006]
[1730711273627,0.00218023,68819.0,68817.0,0.1397826]
[1730711273823,0.00218023,68819.0,68818.0,0.072717]
[1730711275625,0.00218023,68819.0,68818.0,0.073717]
[1730711277040,0.00218023,68819.0,68818.0,0.074717]
[1730711280539,0.00218023,68819.0,68818.0,0.1397826]
[1730711280540,0.11051195,68819.0,68818.0,0.1397826]
[1730711280831,0.11051195,68819.0,68818.0,0.2124996]
[1730711281833,0.05215416,68829.0,68818.0,0.2124996]
[1730711282138,0.18802472,68831.0,68829.0,0.1397826]
[1730711282322,0.04324669,68830.0,68829.0,0.15466595]